[Event "Early-Titled-Tuesday-Blitz-January-23-2024"]
[Site "Chess.com"]
[Date "2024.01.23"]
[Round "3"]
[White "ValentunHulka"]
[Black "BasilSmash"]
[Result "1-0"]
[WhiteElo "2807"]
[BlackElo "2543"]
[TimeControl "180+1"]
[EndTime "8:28:12 PST"]
[Termination "ValentunHulka won on time"]

1. Nc3 {[%clk 0:03:00.9]} 1... c5 {[%clk 0:02:57.8]} 2. Nf3 {[%clk 0:03:00.8]}
2... g6 {[%clk 0:02:56.6]} 3. d4 {[%clk 0:03:01]} 3... cxd4 {[%clk 0:02:56.9]}
4. Qxd4 {[%clk 0:03:01.9]} 4... Nf6 {[%clk 0:02:57]} 5. Qh4 {[%clk 0:03:01.7]}
5... h6 {[%clk 0:02:50.5]} 6. e4 {[%clk 0:03:00.4]} 6... d6 {[%clk 0:02:50.7]}
7. Bc4 {[%clk 0:02:57.8]} 7... Nc6 {[%clk 0:02:46.5]} 8. Be3 {[%clk 0:02:47.4]}
8... Bg7 {[%clk 0:02:46.1]} 9. h3 {[%clk 0:02:28.7]} 9... g5 {[%clk 0:02:40]}
10. Qg3 {[%clk 0:02:28.9]} 10... Nh5 {[%clk 0:02:36.4]} 11. Qh2 {[%clk
0:02:27.9]} 11... Bxc3+ {[%clk 0:02:26.6]} 12. bxc3 {[%clk 0:02:27.6]} 12... Qa5
{[%clk 0:02:26.8]} 13. O-O {[%clk 0:02:10.7]} 13... Qxc3 {[%clk 0:02:04.6]} 14.
Bb5 {[%clk 0:02:04.3]} 14... O-O {[%clk 0:01:59]} 15. Ba4 {[%clk 0:01:55.7]}
15... Be6 {[%clk 0:01:52]} 16. Rfd1 {[%clk 0:01:42.5]} 16... Rac8 {[%clk
0:01:47.9]} 17. Nd4 {[%clk 0:01:09.6]} 17... Nxd4 {[%clk 0:01:35.6]} 18. Bxd4
{[%clk 0:01:10]} 18... Qa5 {[%clk 0:01:28.8]} 19. Bb3 {[%clk 0:01:08.5]} 19...
Nf4 {[%clk 0:01:14.6]} 20. Be3 {[%clk 0:00:58.1]} 20... Ng6 {[%clk 0:00:55.5]}
21. Qg3 {[%clk 0:00:51.1]} 21... a6 {[%clk 0:00:51.2]} 22. Qf3 {[%clk
0:00:46.8]} 22... Qe5 {[%clk 0:00:47.8]} 23. Qh5 {[%clk 0:00:41.2]} 23... Kh7
{[%clk 0:00:44.9]} 24. Rac1 {[%clk 0:00:28.8]} 24... Nf4 {[%clk 0:00:43.3]} 25.
Qf3 {[%clk 0:00:27.8]} 25... b5 {[%clk 0:00:33.8]} 26. Bd4 {[%clk 0:00:19.8]}
26... Nxh3+ {[%clk 0:00:19.5]} 27. gxh3 {[%clk 0:00:19.8]} 27... Qf4 {[%clk
0:00:19.5]} 28. Qxf4 {[%clk 0:00:20.4]} 28... gxf4 {[%clk 0:00:20.4]} 29. f3
{[%clk 0:00:18]} 29... Bxh3 {[%clk 0:00:19.7]} 30. Kf2 {[%clk 0:00:17.4]} 30...
e5 {[%clk 0:00:15.8]} 31. Bb2 {[%clk 0:00:15.7]} 31... Rg8 {[%clk 0:00:15.3]}
32. Rg1 {[%clk 0:00:16]} 32... Be6 {[%clk 0:00:13.7]} 33. Ba3 {[%clk 0:00:10.1]}
33... Rxg1 {[%clk 0:00:11.4]} 34. Kxg1 {[%clk 0:00:07.8]} 34... Bxb3 {[%clk
0:00:09.2]} 35. axb3 {[%clk 0:00:08.7]} 35... Rc6 {[%clk 0:00:08.1]} 36. Kf2
{[%clk 0:00:08.5]} 36... Kg6 {[%clk 0:00:07.1]} 37. Ke2 {[%clk 0:00:08.8]} 37...
Kf6 {[%clk 0:00:07.3]} 38. Kd3 {[%clk 0:00:08.7]} 38... Ke6 {[%clk 0:00:07.7]}
39. Rh1 {[%clk 0:00:08.8]} 39... a5 {[%clk 0:00:03.1]} 40. Rxh6+ {[%clk
0:00:09.1]} 40... f6 {[%clk 0:00:04]} 41. Bb2 {[%clk 0:00:04.2]} 41... a4 {[%clk
0:00:03.6]} 42. bxa4 {[%clk 0:00:03.9]} 42... bxa4 {[%clk 0:00:04.5]} 43. Ba3
{[%clk 0:00:04.4]} 43... Rb6 {[%clk 0:00:02.8]} 44. Rh8 {[%clk 0:00:05]} 44...
Rb1 {[%clk 0:00:01.9]} 45. Ra8 {[%clk 0:00:05.1]} 45... Rd1+ {[%clk 0:00:01.3]}
46. Ke2 {[%clk 0:00:05.5]} 1-0

[Event "Early-Titled-Tuesday-Blitz-January-23-2024"]
[Site "Chess.com"]
[Date "2024.01.23"]
[Round "3"]
[White "Kunalm64"]
[Black "viktorskliarov"]
[Result "0-1"]
[WhiteElo "2421"]
[BlackElo "2666"]
[TimeControl "180+1"]
[EndTime "8:28:13 PST"]
[Termination "viktorskliarov won by resignation"]

1. e4 {[%clk 0:03:00]} 1... c5 {[%clk 0:02:58.9]} 2. Nf3 {[%clk 0:02:59.9]} 2...
Nc6 {[%clk 0:02:57.5]} 3. Bb5 {[%clk 0:02:59.5]} 3... e6 {[%clk 0:02:57.4]} 4.
O-O {[%clk 0:02:58.3]} 4... Nge7 {[%clk 0:02:57.3]} 5. Re1 {[%clk 0:02:56.7]}
5... Nd4 {[%clk 0:02:57]} 6. Nxd4 {[%clk 0:02:52.5]} 6... cxd4 {[%clk
0:02:57.9]} 7. c3 {[%clk 0:02:51.8]} 7... a6 {[%clk 0:02:57.4]} 8. Bf1 {[%clk
0:02:51.5]} 8... Nc6 {[%clk 0:02:56.7]} 9. d3 {[%clk 0:02:46.7]} 9... Bc5 {[%clk
0:02:53.6]} 10. Nd2 {[%clk 0:02:41.3]} 10... O-O {[%clk 0:02:52.3]} 11. Nf3
{[%clk 0:02:41.1]} 11... b5 {[%clk 0:02:48.7]} 12. cxd4 {[%clk 0:02:30.6]} 12...
Nxd4 {[%clk 0:02:48.1]} 13. Be3 {[%clk 0:02:30.7]} 13... Qb6 {[%clk 0:02:34.1]}
14. Rc1 {[%clk 0:02:29.2]} 14... Nxf3+ {[%clk 0:02:31.6]} 15. Qxf3 {[%clk
0:02:29]} 15... Bxe3 {[%clk 0:02:23.1]} 16. Qxe3 {[%clk 0:02:29.1]} 16... Qxe3
{[%clk 0:02:23]} 17. fxe3 {[%clk 0:02:20.3]} 17... Bb7 {[%clk 0:02:22.9]} 18.
Rc7 {[%clk 0:02:17.9]} 18... Bc6 {[%clk 0:02:22.7]} 19. Rc1 {[%clk 0:02:11.3]}
19... Rfc8 {[%clk 0:01:54.3]} 20. Rxc8+ {[%clk 0:02:10]} 20... Rxc8 {[%clk
0:01:55.2]} 21. e5 {[%clk 0:02:04.8]} 21... f6 {[%clk 0:01:48.9]} 22. exf6
{[%clk 0:02:04.1]} 22... gxf6 {[%clk 0:01:48.7]} 23. d4 {[%clk 0:02:04.2]} 23...
Bb7 {[%clk 0:01:42.6]} 24. Rxc8+ {[%clk 0:02:02.3]} 24... Bxc8 {[%clk
0:01:43.5]} 25. Kf2 {[%clk 0:01:50.5]} 25... Bb7 {[%clk 0:01:28.4]} 26. g4
{[%clk 0:01:43.9]} 26... b4 {[%clk 0:01:22.4]} 27. Bg2 {[%clk 0:01:42.6]} 27...
Bxg2 {[%clk 0:00:47.5]} 28. Kxg2 {[%clk 0:01:42.5]} 28... Kg7 {[%clk 0:00:48.1]}
29. e4 {[%clk 0:01:41.8]} 29... Kg6 {[%clk 0:00:45.4]} 30. Kf3 {[%clk
0:01:34.8]} 30... Kg5 {[%clk 0:00:38.9]} 31. Kg3 {[%clk 0:01:34.7]} 31... a5
{[%clk 0:00:36.4]} 32. h4+ {[%clk 0:01:33.6]} 32... Kg6 {[%clk 0:00:36.5]} 33.
e5 {[%clk 0:01:10.6]} 33... f5 {[%clk 0:00:27.5]} 34. b3 {[%clk 0:00:59.4]}
34... fxg4 {[%clk 0:00:08.8]} 35. Kxg4 {[%clk 0:00:59.3]} 35... h5+ {[%clk
0:00:09.4]} 36. Kf4 {[%clk 0:00:59.5]} 36... Kh6 {[%clk 0:00:09.7]} 37. Ke4
{[%clk 0:00:59.5]} 37... Kg6 {[%clk 0:00:10.2]} 38. d5 {[%clk 0:00:59.5]} 38...
exd5+ {[%clk 0:00:08.6]} 39. Kxd5 {[%clk 0:00:59.5]} 39... Kf5 {[%clk
0:00:09.3]} 40. Kd6 {[%clk 0:00:58.8]} 40... Ke4 {[%clk 0:00:09.2]} 41. Kc5
{[%clk 0:00:22.7]} 41... Kxe5 {[%clk 0:00:09]} 42. Kb5 {[%clk 0:00:23]} 42... d5
{[%clk 0:00:08.9]} 43. Kxa5 {[%clk 0:00:23.3]} 43... d4 {[%clk 0:00:07.4]} 44.
Kxb4 {[%clk 0:00:23.3]} 44... Ke4 {[%clk 0:00:07.9]} 45. a4 {[%clk 0:00:22.9]}
45... d3 {[%clk 0:00:08.4]} 46. a5 {[%clk 0:00:23.1]} 46... d2 {[%clk
0:00:08.4]} 47. a6 {[%clk 0:00:23.3]} 47... d1=Q {[%clk 0:00:08.8]} 48. a7
{[%clk 0:00:23.4]} 48... Qa1 {[%clk 0:00:08.5]} 0-1

[Event "Early-Titled-Tuesday-Blitz-January-23-2024"]
[Site "Chess.com"]
[Date "2024.01.23"]
[Round "3"]
[White "FMCarmona"]
[Black "Bkmzzzzz"]
[Result "0-1"]
[WhiteElo "2153"]
[BlackElo "2399"]
[TimeControl "180+1"]
[EndTime "8:28:13 PST"]
[Termination "Bkmzzzzz won on time"]

1. e4 {[%clk 0:03:00.9]} 1... d6 {[%clk 0:02:58.8]} 2. d4 {[%clk 0:03:00.5]}
2... Nf6 {[%clk 0:02:58.5]} 3. Nc3 {[%clk 0:03:01.2]} 3... e5 {[%clk 0:02:58.8]}
4. dxe5 {[%clk 0:02:57.6]} 4... dxe5 {[%clk 0:02:59.7]} 5. Qxd8+ {[%clk
0:02:57.8]} 5... Kxd8 {[%clk 0:03:00.6]} 6. Bg5 {[%clk 0:02:57.9]} 6... Be6
{[%clk 0:03:01.1]} 7. O-O-O+ {[%clk 0:02:57.8]} 7... Nd7 {[%clk 0:03:01.7]} 8.
Nf3 {[%clk 0:02:54.2]} 8... Bd6 {[%clk 0:03:01.7]} 9. h3 {[%clk 0:02:53.5]} 9...
Ke7 {[%clk 0:03:01.9]} 10. a3 {[%clk 0:02:53.6]} 10... c6 {[%clk 0:03:02.3]} 11.
Bh4 {[%clk 0:02:45.7]} 11... b5 {[%clk 0:03:01.4]} 12. Bg3 {[%clk 0:02:44.6]}
12... a5 {[%clk 0:03:01.5]} 13. Nd2 {[%clk 0:02:29.2]} 13... Nh5 {[%clk
0:02:38.1]} 14. Bh2 {[%clk 0:02:27.7]} 14... Bc5 {[%clk 0:02:29.2]} 15. f3
{[%clk 0:02:19.6]} 15... Be3 {[%clk 0:02:09.1]} 16. Kb1 {[%clk 0:02:09.5]} 16...
b4 {[%clk 0:02:07.9]} 17. Na4 {[%clk 0:01:54.9]} 17... Rhb8 {[%clk 0:01:55.5]}
18. Nc4 {[%clk 0:01:36.3]} 18... Bd4 {[%clk 0:01:49]} 19. b3 {[%clk 0:01:19.7]}
19... bxa3 {[%clk 0:01:33.6]} 20. Ka2 {[%clk 0:01:18.4]} 20... f6 {[%clk
0:01:01.3]} 21. Kxa3 {[%clk 0:01:14.8]} 21... Nc5 {[%clk 0:00:59.8]} 22. Rxd4
{[%clk 0:00:35.7]} 22... Nxa4 {[%clk 0:00:50.1]} 23. Rd2 {[%clk 0:00:26.7]}
23... Nc3 {[%clk 0:00:49.4]} 24. Bg1 {[%clk 0:00:16.4]} 24... a4 {[%clk
0:00:48.7]} 25. Bc5+ {[%clk 0:00:15.5]} 25... Kf7 {[%clk 0:00:46.2]} 26. Nd6+
{[%clk 0:00:14.5]} 26... Kg8 {[%clk 0:00:46.3]} 27. Kb2 {[%clk 0:00:15]} 27...
axb3 {[%clk 0:00:46.4]} 28. Kxc3 {[%clk 0:00:15.3]} 28... b2 {[%clk 0:00:46.1]}
29. Bc4 {[%clk 0:00:12.1]} 29... Bxc4 {[%clk 0:00:44.4]} 30. Nxc4 {[%clk
0:00:12]} 30... b1=Q {[%clk 0:00:44.9]} 31. Rxb1 {[%clk 0:00:12.2]} 31... Rxb1
{[%clk 0:00:45.8]} 32. Rd7 {[%clk 0:00:11.8]} 32... Nf4 {[%clk 0:00:44.2]} 33.
Nd6 {[%clk 0:00:11.2]} 33... Ne6 {[%clk 0:00:43.2]} 34. Nf5 {[%clk 0:00:10.2]}
34... Nxc5 {[%clk 0:00:42.6]} 35. Rxg7+ {[%clk 0:00:09.3]} 35... Kh8 {[%clk
0:00:43.2]} 36. Rc7 {[%clk 0:00:09.1]} 36... Rbb8 {[%clk 0:00:37.6]} 37. Nh6
{[%clk 0:00:08.7]} 37... Rc8 {[%clk 0:00:35.4]} 38. Re7 {[%clk 0:00:05.4]} 38...
Rab8 {[%clk 0:00:25.7]} 39. Kc4 {[%clk 0:00:05.5]} 39... Na6 {[%clk 0:00:24.4]}
40. Nf7+ {[%clk 0:00:03.7]} 40... Kg8 {[%clk 0:00:24.2]} 41. Nh6+ {[%clk
0:00:03.9]} 41... Kf8 {[%clk 0:00:24.7]} 42. Rxh7 {[%clk 0:00:03.9]} 42... Rc7
{[%clk 0:00:25]} 43. Rh8+ {[%clk 0:00:03.7]} 43... Kg7 {[%clk 0:00:25.1]} 44.
Rxb8 {[%clk 0:00:02.8]} 44... Nxb8 {[%clk 0:00:25.9]} 45. Nf5+ {[%clk
0:00:03.1]} 45... Kf7 {[%clk 0:00:26.2]} 46. g4 {[%clk 0:00:03.1]} 46... Ke6
{[%clk 0:00:25.7]} 47. h4 {[%clk 0:00:03.5]} 47... Nd7 {[%clk 0:00:26.2]} 48. g5
{[%clk 0:00:02.8]} 48... fxg5 {[%clk 0:00:25.1]} 49. hxg5 {[%clk 0:00:03.7]}
49... Nf8 {[%clk 0:00:24.3]} 50. Kc5 {[%clk 0:00:04.6]} 50... Ng6 {[%clk
0:00:24.4]} 51. c4 {[%clk 0:00:01.7]} 51... Nf4 {[%clk 0:00:24.4]} 52. g6 {[%clk
0:00:01.1]} 52... Nxg6 {[%clk 0:00:23.8]} 0-1

[Event "Early-Titled-Tuesday-Blitz-January-23-2024"]
[Site "Chess.com"]
[Date "2024.01.23"]
[Round "3"]
[White "lucliasco"]
[Black "YurasovMat-2012"]
[Result "1-0"]
[WhiteElo "2893"]
[BlackElo "2619"]
[TimeControl "180+1"]
[EndTime "8:28:14 PST"]
[Termination "lucliasco won on time"]

1. d4 {[%clk 0:03:00.9]} 1... d5 {[%clk 0:02:53.6]} 2. c4 {[%clk 0:03:01.4]}
2... c6 {[%clk 0:02:52.4]} 3. Nf3 {[%clk 0:03:01.2]} 3... Nf6 {[%clk 0:02:51.1]}
4. cxd5 {[%clk 0:03:02.1]} 4... cxd5 {[%clk 0:02:43.1]} 5. Nc3 {[%clk 0:03:03]}
5... Nc6 {[%clk 0:02:42.1]} 6. e3 {[%clk 0:03:03.9]} 6... Bf5 {[%clk 0:02:41.8]}
7. Ne5 {[%clk 0:03:03.2]} 7... e6 {[%clk 0:02:34.3]} 8. g4 {[%clk 0:03:02.9]}
8... Be4 {[%clk 0:02:31.1]} 9. f3 {[%clk 0:03:03]} 9... Bg6 {[%clk 0:02:30.8]}
10. h4 {[%clk 0:03:03.1]} 10... h6 {[%clk 0:02:21.1]} 11. Nxg6 {[%clk
0:03:01.9]} 11... fxg6 {[%clk 0:02:20.8]} 12. Bd3 {[%clk 0:03:02.8]} 12... Kf7
{[%clk 0:02:16.3]} 13. h5 {[%clk 0:03:00.3]} 13... gxh5 {[%clk 0:02:15.5]} 14.
gxh5 {[%clk 0:03:00.9]} 14... Bd6 {[%clk 0:02:15.3]} 15. Bg6+ {[%clk 0:03:00.5]}
15... Kf8 {[%clk 0:02:15.2]} 16. f4 {[%clk 0:03:01.4]} 16... Rc8 {[%clk
0:02:11]} 17. O-O {[%clk 0:02:33.5]} 17... Ne7 {[%clk 0:02:08.9]} 18. Qd3 {[%clk
0:02:33]} 18... Nxg6 {[%clk 0:02:07.1]} 19. hxg6 {[%clk 0:02:29.5]} 19... a6
{[%clk 0:01:59.1]} 20. Bd2 {[%clk 0:02:28.7]} 20... b5 {[%clk 0:01:53.7]} 21. a3
{[%clk 0:02:27.1]} 21... Qb6 {[%clk 0:01:45.1]} 22. Be1 {[%clk 0:02:21.9]} 22...
Qc6 {[%clk 0:01:39.5]} 23. Bh4 {[%clk 0:02:21.1]} 23... Be7 {[%clk 0:01:27.4]}
24. f5 {[%clk 0:02:19.5]} 24... Ke8 {[%clk 0:01:22.7]} 25. Rae1 {[%clk
0:02:14.7]} 25... Ne4 {[%clk 0:01:13.2]} 26. Bxe7 {[%clk 0:02:07.8]} 26... Kxe7
{[%clk 0:01:13]} 27. Nxe4 {[%clk 0:02:08.6]} 27... dxe4 {[%clk 0:01:12.6]} 28.
Qb3 {[%clk 0:02:09.5]} 28... Rhf8 {[%clk 0:01:09.5]} 29. fxe6 {[%clk 0:01:45.2]}
29... Qxe6 {[%clk 0:01:07.3]} 30. Qb4+ {[%clk 0:01:40.3]} 30... Qd6 {[%clk
0:01:05.9]} 31. Qxd6+ {[%clk 0:01:35.2]} 31... Kxd6 {[%clk 0:01:05.6]} 32. Kh2
{[%clk 0:01:35.8]} 32... Ke6 {[%clk 0:00:59.5]} 33. Kg3 {[%clk 0:01:35.4]} 33...
Kd5 {[%clk 0:00:44.8]} 34. Rc1 {[%clk 0:01:27]} 34... Rxc1 {[%clk 0:00:34.7]}
35. Rxf8 {[%clk 0:01:21.5]} 35... Rg1+ {[%clk 0:00:33.4]} 36. Kf2 {[%clk
0:01:21]} 36... Rxg6 {[%clk 0:00:32.6]} 37. Re8 {[%clk 0:01:14.6]} 37... Rf6+
{[%clk 0:00:20.2]} 38. Ke2 {[%clk 0:01:14.4]} 38... Re6 {[%clk 0:00:19.3]} 39.
Rd8+ {[%clk 0:01:10.8]} 39... Rd6 {[%clk 0:00:19.4]} 40. Re8 {[%clk 0:01:07.9]}
40... Rg6 {[%clk 0:00:18.1]} 41. Re5+ {[%clk 0:01:07.6]} 41... Kd6 {[%clk
0:00:17.8]} 42. Rxe4 {[%clk 0:01:08.4]} 42... Rg2+ {[%clk 0:00:17.4]} 43. Kf3
{[%clk 0:01:08.9]} 43... Rxb2 {[%clk 0:00:18]} 44. Rg4 {[%clk 0:01:04.8]} 44...
g5 {[%clk 0:00:17.1]} 45. Rg1 {[%clk 0:01:04.9]} 45... Rh2 {[%clk 0:00:09]} 46.
Ke4 {[%clk 0:01:02.8]} 46... Rh4+ {[%clk 0:00:07.2]} 47. Kd3 {[%clk 0:01:03.2]}
47... Rh3 {[%clk 0:00:07.1]} 48. Rf1 {[%clk 0:01:02.4]} 48... Ke6 {[%clk
0:00:06.3]} 49. Rc1 {[%clk 0:01:02.7]} 49... Kd7 {[%clk 0:00:05.7]} 50. Rg1
{[%clk 0:00:57.5]} 50... Kd6 {[%clk 0:00:04.9]} 51. Rg2 {[%clk 0:00:57.6]} 51...
Ke6 {[%clk 0:00:04.7]} 52. a4 {[%clk 0:00:53.8]} 52... bxa4 {[%clk 0:00:03.5]}
53. Ra2 {[%clk 0:00:54]} 53... g4 {[%clk 0:00:03.1]} 54. Rxa4 {[%clk 0:00:54.6]}
54... g3 {[%clk 0:00:02.6]} 55. Rxa6+ {[%clk 0:00:55.5]} 55... Kf5 {[%clk
0:00:02.3]} 56. Ra8 {[%clk 0:00:51.2]} 56... g2 {[%clk 0:00:01.5]} 57. Rg8
{[%clk 0:00:51.2]} 1-0

[Event "Early-Titled-Tuesday-Blitz-January-23-2024"]
[Site "Chess.com"]
[Date "2024.01.23"]
[Round "3"]
[White "Zheenbekov86"]
[Black "Pliukha_Mikhail"]
[Result "1/2-1/2"]
[WhiteElo "2515"]
[BlackElo "2745"]
[TimeControl "180+1"]
[EndTime "8:28:15 PST"]
[Termination "Game drawn - insufficient material"]

1. d4 {[%clk 0:03:00]} 1... Nf6 {[%clk 0:03:00.1]} 2. c4 {[%clk 0:02:59.5]} 2...
e6 {[%clk 0:03:01]} 3. Nf3 {[%clk 0:02:59.4]} 3... d5 {[%clk 0:03:01.9]} 4. g3
{[%clk 0:02:58.7]} 4... c5 {[%clk 0:03:02.4]} 5. Bg2 {[%clk 0:02:57.8]} 5... Nc6
{[%clk 0:03:02.9]} 6. O-O {[%clk 0:02:57.8]} 6... dxc4 {[%clk 0:03:03.3]} 7. Qa4
{[%clk 0:02:54.1]} 7... cxd4 {[%clk 0:03:01.3]} 8. Nxd4 {[%clk 0:02:52]} 8...
Qxd4 {[%clk 0:03:02.2]} 9. Bxc6+ {[%clk 0:02:52]} 9... Bd7 {[%clk 0:03:02.5]}
10. Bxd7+ {[%clk 0:02:51.2]} 10... Qxd7 {[%clk 0:03:02.1]} 11. Qxc4 {[%clk
0:02:51.2]} 11... Rc8 {[%clk 0:03:02.7]} 12. Qb3 {[%clk 0:02:48.2]} 12... Bc5
{[%clk 0:02:59.8]} 13. Nc3 {[%clk 0:02:47.9]} 13... O-O {[%clk 0:02:59.6]} 14.
Bg5 {[%clk 0:02:46.3]} 14... Ng4 {[%clk 0:02:57.7]} 15. Ne4 {[%clk 0:02:40.8]}
15... Bb6 {[%clk 0:02:56.6]} 16. h3 {[%clk 0:02:33.1]} 16... Ne5 {[%clk
0:02:30.1]} 17. Bf4 {[%clk 0:02:22.5]} 17... Ng6 {[%clk 0:02:26.9]} 18. Rfd1
{[%clk 0:02:19.4]} 18... Qc6 {[%clk 0:02:26.8]} 19. Qf3 {[%clk 0:02:10.2]} 19...
f5 {[%clk 0:01:42.6]} 20. Ng5 {[%clk 0:01:53]} 20... e5 {[%clk 0:01:42.3]} 21.
Qb3+ {[%clk 0:01:52.4]} 21... Kh8 {[%clk 0:01:42.3]} 22. Rac1 {[%clk 0:01:45.4]}
22... Qe8 {[%clk 0:01:16.8]} 23. Rxc8 {[%clk 0:01:42.8]} 23... Qxc8 {[%clk
0:01:17.7]} 24. Nf7+ {[%clk 0:01:26.8]} 24... Rxf7 {[%clk 0:01:17.7]} 25. Qxf7
{[%clk 0:01:26.6]} 25... exf4 {[%clk 0:01:17.1]} 26. Rd7 {[%clk 0:01:22.3]}
26... Qg8 {[%clk 0:00:22.7]} 27. gxf4 {[%clk 0:01:12]} 27... Nxf4 {[%clk
0:00:20.8]} 28. e3 {[%clk 0:01:06.5]} 28... Nxh3+ {[%clk 0:00:19.2]} 29. Kf1
{[%clk 0:01:01]} 29... Qxf7 {[%clk 0:00:15.4]} 30. Rxf7 {[%clk 0:01:00.6]} 30...
g6 {[%clk 0:00:16]} 31. Rxb7 {[%clk 0:00:59.3]} 31... f4 {[%clk 0:00:16.1]} 32.
exf4 {[%clk 0:00:55.6]} 32... Nxf4 {[%clk 0:00:17]} 33. b4 {[%clk 0:00:55.7]}
33... Nd3 {[%clk 0:00:16.7]} 34. b5 {[%clk 0:00:51.5]} 34... h5 {[%clk
0:00:13.4]} 35. a4 {[%clk 0:00:50.5]} 35... h4 {[%clk 0:00:13.5]} 36. a5 {[%clk
0:00:50]} 36... Bxa5 {[%clk 0:00:13.7]} 37. Rxa7 {[%clk 0:00:49.9]} 37... Bb6
{[%clk 0:00:09.1]} 38. Ra6 {[%clk 0:00:49.6]} 38... Bxf2 {[%clk 0:00:07.4]} 39.
Rxg6 {[%clk 0:00:49.4]} 39... Bg3 {[%clk 0:00:04.9]} 40. b6 {[%clk 0:00:47.8]}
40... Kh7 {[%clk 0:00:03.7]} 41. Rc6 {[%clk 0:00:44.7]} 41... h3 {[%clk
0:00:02.4]} 42. Rc3 {[%clk 0:00:30.5]} 42... h2 {[%clk 0:00:02.3]} 43. Kg2
{[%clk 0:00:30.7]} 43... Nf2 {[%clk 0:00:02.9]} 44. Rc1 {[%clk 0:00:30]} 44...
h1=Q+ {[%clk 0:00:03.2]} 45. Rxh1+ {[%clk 0:00:29.1]} 45... Nxh1 {[%clk
0:00:04.1]} 46. Kxh1 {[%clk 0:00:28.7]} 46... Bb8 {[%clk 0:00:05]} 47. Kg2
{[%clk 0:00:28.7]} 47... Kg6 {[%clk 0:00:05.9]} 48. Kf3 {[%clk 0:00:28.6]} 48...
Kf7 {[%clk 0:00:06.8]} 49. Ke4 {[%clk 0:00:27.2]} 49... Ke6 {[%clk 0:00:07.7]}
50. Kd3 {[%clk 0:00:25.3]} 50... Kd7 {[%clk 0:00:08.6]} 51. Kd4 {[%clk
0:00:25.2]} 51... Kc6 {[%clk 0:00:09.5]} 52. Kc4 {[%clk 0:00:25.3]} 52... Kb7
{[%clk 0:00:10.4]} 53. Kc5 {[%clk 0:00:25.3]} 53... Bh2 {[%clk 0:00:11.3]} 54.
Kb5 {[%clk 0:00:22.8]} 54... Bg1 {[%clk 0:00:12.2]} 55. Kb4 {[%clk 0:00:22.4]}
55... Bxb6 {[%clk 0:00:13.1]} 1/2-1/2

[Event "Early-Titled-Tuesday-Blitz-January-23-2024"]
[Site "Chess.com"]
[Date "2024.01.23"]
[Round "3"]
[White "ural58"]
[Black "arenal72"]
[Result "1-0"]
[WhiteElo "2441"]
[BlackElo "2588"]
[TimeControl "180+1"]
[EndTime "8:28:15 PST"]
[Termination "ural58 won by resignation"]

1. e4 {[%clk 0:02:56.4]} 1... Nc6 {[%clk 0:02:48.4]} 2. Nf3 {[%clk 0:02:55.6]}
2... d6 {[%clk 0:02:47.9]} 3. d4 {[%clk 0:02:55.5]} 3... Nf6 {[%clk 0:02:47.7]}
4. d5 {[%clk 0:02:54]} 4... Nb8 {[%clk 0:02:46.6]} 5. Nc3 {[%clk 0:02:50.6]}
5... g6 {[%clk 0:02:43.9]} 6. h3 {[%clk 0:02:50.2]} 6... Bg7 {[%clk 0:02:43.2]}
7. Be3 {[%clk 0:02:49.9]} 7... a6 {[%clk 0:02:37.6]} 8. Qd2 {[%clk 0:02:45.6]}
8... b5 {[%clk 0:02:35.8]} 9. Bd3 {[%clk 0:02:45.1]} 9... O-O {[%clk 0:02:31.1]}
10. Bh6 {[%clk 0:02:36.9]} 10... c5 {[%clk 0:02:29]} 11. dxc6 {[%clk 0:02:30.4]}
11... Nxc6 {[%clk 0:02:26.6]} 12. h4 {[%clk 0:02:24.3]} 12... Bg4 {[%clk
0:02:23.3]} 13. Bxg7 {[%clk 0:02:23.3]} 13... Kxg7 {[%clk 0:02:22.9]} 14. Nh2
{[%clk 0:02:23.4]} 14... b4 {[%clk 0:02:04.6]} 15. Nxg4 {[%clk 0:02:14.7]} 15...
Nxg4 {[%clk 0:01:44.3]} 16. Nd5 {[%clk 0:02:12.1]} 16... e6 {[%clk 0:01:41.4]}
17. Nxb4 {[%clk 0:02:06.4]} 17... Nxb4 {[%clk 0:01:38.9]} 18. Qxb4 {[%clk
0:02:04.2]} 18... Qf6 {[%clk 0:01:35]} 19. f3 {[%clk 0:01:46.1]} 19... Rfb8
{[%clk 0:01:15.9]} 20. Qxd6 {[%clk 0:01:42.5]} 20... Ne3 {[%clk 0:00:26.2]} 21.
Kf2 {[%clk 0:01:31.2]} 21... Ng4+ {[%clk 0:00:25.7]} 22. Kg3 {[%clk 0:01:28.2]}
22... Ne5 {[%clk 0:00:23]} 23. f4 {[%clk 0:01:09.5]} 23... Nxd3 {[%clk
0:00:18.5]} 24. cxd3 {[%clk 0:01:04.9]} 24... Rd8 {[%clk 0:00:17.4]} 25. Qa3
{[%clk 0:01:04]} 25... e5 {[%clk 0:00:14.9]} 26. Rhf1 {[%clk 0:01:02.3]} 26...
Rd7 {[%clk 0:00:07.5]} 27. Qc3 {[%clk 0:00:59.1]} 27... Rad8 {[%clk 0:00:02.4]}
28. Rad1 {[%clk 0:00:49.9]} 28... exf4+ {[%clk 0:00:02.7]} 29. Rxf4 {[%clk
0:00:46.6]} 29... Qxc3 {[%clk 0:00:03]} 30. bxc3 {[%clk 0:00:46.3]} 30... Rxd3+
{[%clk 0:00:03.9]} 31. Rxd3 {[%clk 0:00:46]} 31... Rxd3+ {[%clk 0:00:04.8]} 32.
Rf3 {[%clk 0:00:46.1]} 32... Rd2 {[%clk 0:00:05.5]} 33. Rf2 {[%clk 0:00:39.9]}
33... Rd3+ {[%clk 0:00:04.6]} 34. Rf3 {[%clk 0:00:40.1]} 34... Rd1 {[%clk
0:00:04.7]} 35. Kf4 {[%clk 0:00:27.3]} 35... Rc1 {[%clk 0:00:04.7]} 36. Ke5
{[%clk 0:00:25.6]} 36... Rc2 {[%clk 0:00:05]} 37. g4 {[%clk 0:00:25.1]} 37...
Rxa2 {[%clk 0:00:04.9]} 38. c4 {[%clk 0:00:25.4]} 38... Rh2 {[%clk 0:00:03.9]}
39. Rc3 {[%clk 0:00:24.2]} 39... Kf8 {[%clk 0:00:02.3]} 40. Kd6 {[%clk
0:00:15.8]} 40... Ke8 {[%clk 0:00:02.4]} 41. Kc7 {[%clk 0:00:15.9]} 41... Rxh4
{[%clk 0:00:01.9]} 42. c5 {[%clk 0:00:15.6]} 42... Rxg4 {[%clk 0:00:02.5]} 43.
Rc4 {[%clk 0:00:14.2]} 43... h5 {[%clk 0:00:01.8]} 44. c6 {[%clk 0:00:14.5]}
44... h4 {[%clk 0:00:02.5]} 45. Kb8 {[%clk 0:00:14.4]} 45... Rg5 {[%clk
0:00:01.9]} 46. c7 {[%clk 0:00:13.4]} 46... Rb5+ {[%clk 0:00:02.8]} 47. Ka7
{[%clk 0:00:13.7]} 47... h3 {[%clk 0:00:03.2]} 48. c8=Q+ {[%clk 0:00:13.9]}
48... Ke7 {[%clk 0:00:03.9]} 49. Qxh3 {[%clk 0:00:14.5]} 1-0